Cogmind - Beta 15 @@@ ROGUE MODE // 2025.06.23 @ 07:07:37 Player: puppuppit Result: Destroyed by Cetus Guard with Advanced KE Penetrator Performance ------------- Evolutions (4) 2000 Regions Visited (11) 2200 Robots Destroyed (431) 2155 Value Destroyed (12556) 12556 Prototype IDs (32) 640 Alien Tech Used (0) 0 Bonus (8975) 8975 TOTAL SCORE: 28526 Bonus ------- Triggered High Security 500 High Alert Combat Kills 6069 Follower Combat Kills 2835 Registered with UFD 300 Met Optimus in HQ 500 Friendly Fire -1229 Cogmind --------- Core Integrity 0/850 Matter 273/300 Energy 290/290 System Corruption 14% Temperature Warm (167) Movement Hovering (49) Location -6/Cetus Parts ------- > --- POWER (1) -------- Improved Deuterium Engine > --- PROPULSION (5) --- Gravmag System Improved Airjet Cooled Airjet Combat Airjet Combat Airjet > --- UTILITY (5) ------ Large Storage Unit Core Analyzer Weapon Cycler Makeshift Propulsion Shielding > --- WEAPON (4) ------- Gauss Rifle Gauss Rifle Coil Gun Coil Gun > --- INVENTORY (15) --- Gravmag System Improved Gravmag System Matter Compressor (250) Gauss Rifle Coil Gun Advanced KE Penetrator Plasma Cutter DRS Beacon (Ready) Peak State ------------ > --- POWER ------------ Micro Nuclear Core > --- PROPULSION ------- Improved Gravmag System Combat Airjet Combat Airjet Gravmag Array > --- UTILITY ---------- Advanced Heat Sink Large Storage Unit Core Analyzer Kinecellerator Advanced Powered Armor > --- WEAPON ----------- Coil Gun Coil Gun Coil Gun Advanced KE Penetrator > --- INVENTORY -------- Improved Airjet Cooled Airjet Improved Gravmag System Gravmag Array Matter Compressor Matter Compressor Weapon Cycler Coil Gun Coil Gun Coil Gun Scatter Rocket Array Plasma Cutter DRS Beacon [Rating: 80] Favorites ----------- Power Micro Nuclear Core Engine Light Ion Engine Power Core Micro Nuclear Core Propulsion Light Treads Treads Light Treads Hover Unit Gravmag Array Utility Large Storage Unit Device Advanced Heat Sink Storage Large Storage Unit Processor Core Analyzer Hackware Hacking Suite Protection Medium Armor Plating Weapon Coil Gun Energy Gun Small Laser Energy Cannon Advanced Beam Cannon Ballistic Gun Coil Gun Ballistic Cannon Improved Light Cannon Launcher Scatter Rocket Array Special Weapon Plasma Cutter Build | -11 -10 -10 -9 -9 -9 -9 -6 -6 -6 -6 -6 ------- Run | Yrd Mat Min Mat Sto Rec Scr Fac Was Fac Ext Cet Slots Evolved 8 | . . . 2 . . . 6 . . . . Power . | . . . . . . . . . . . . Propulsion 3 | . . . . . . . 3 . . . . Utility 3 | . . . . . . . 3 . . . . Weapon 2 | . . . 2 . . . . . . . . Parts Attached 121 | 7 6 . 26 17 . 1 45 3 7 8 1 Power 15 | 1 1 . 3 2 . . 7 . . 1 . Engine 9 | 1 . . 3 2 . . 2 . . 1 . Core 6 | . 1 . . . . . 5 . . . . Reactor . | . . . . . . . . . . . . Propulsion 28 | 2 . . 6 4 . . 9 . 4 3 . Treads 13 | 2 . . 6 4 . . 1 . . . . Leg . | . . . . . . . . . . . . Wheel . | . . . . . . . . . . . . Hover 15 | . . . . . . . 8 . 4 3 . Flight . | . . . . . . . . . . . . Utility 35 | 2 2 . 5 3 . 1 17 2 2 . 1 Device 11 | 1 1 . 1 1 . . 7 . . . . Storage 4 | 1 1 . . 1 . 1 . . . . . Processor 4 | . . . 1 . . . 2 . 1 . . Hackware 8 | . . . . 1 . . 6 . 1 . . Protection 8 | . . . 3 . . . 2 2 . . 1 Artifact . | . . . . . . . . . . . . Weapon 43 | 2 3 . 12 8 . . 12 1 1 4 . Energy Gun 2 | 1 . . . 1 . . . . . . . Energy Cannon 1 | . . . . 1 . . . . . . . Ballistic Gun 26 | 1 2 . 5 4 . . 10 1 . 3 . Ballistic Cannon 7 | . . . 5 2 . . . . . . . Launcher 6 | . 1 . 2 . . . 2 . . 1 . Special Weapon 1 | . . . . . . . . . 1 . . Impact Weapon . | . . . . . . . . . . . . Slashing Weapon . | . . . . . . . . . . . . Piercing Weapon . | . . . . . . . . . . . . Special Melee Weapon . | . . . . . . . . . . . . Unidentified Prototypes 9 | . . . 2 2 . . 3 1 1 . . Parts Lost 30 | . 2 . 1 4 . . 8 . 2 13 . Power 5 | . 1 . . . . . 2 . . 2 . Propulsion 6 | . . . 1 1 . . 1 . . 3 . Utility 7 | . . . . . . . 2 . 2 3 . Weapon 12 | . 1 . . 3 . . 3 . . 5 . Highest Loss Streak 12 | . 1 . 1 3 . . 2 . 1 12 . To Critical Strikes 2 | . . . . . . . . . . 2 . Average Backups 12 | . 6 10 14 13 15 14 13 12 12 12 7 Power . | . . . . . . . . 1 . . . Propulsion 2 | . . 1 1 2 3 1 2 3 3 3 2 Utility 4 | . 3 5 5 4 5 5 3 3 4 3 1 Weapon 5 | . 1 4 6 6 7 6 6 4 3 4 3 Tool/Special . | . . . . . . . . . . . . Unused Backups 22 | . . . 6 2 . 1 9 1 . 1 2 Power 1 | . . . . . . . 1 . . . . Propulsion 3 | . . . 1 . . . 1 . . . 1 Utility 10 | . . . 3 . . 1 4 . . 1 1 Weapon 8 | . . . 2 2 . . 3 1 . . . Tool/Special . | . . . . . . . . . . . . Average Slot Usage (%) 91 | . 100 100 99 93 88 88 85 86 90 88 86 Engine 3 | . 13 . 6 5 . . 2 . . . 6 Core 2 | . . 14 4 . . . 3 6 6 5 . Treads 13 | . 28 28 21 22 22 22 2 . . . . Hover 9 | . . . . . . . 17 20 24 25 33 Device 6 | . 14 14 2 2 . . 7 18 8 16 6 Storage 9 | . 14 14 11 11 11 11 6 6 6 6 6 Processor 1 | . . . 1 . . . . 6 6 6 6 Hackware 3 | . . . . 1 . . 12 . 4 . . Protection 5 | . . . 7 6 11 11 4 1 4 . . Ballistic Gun 24 | . 17 28 9 22 44 44 25 26 25 24 26 Ballistic Cannon 9 | . . . 33 21 . . . . . . . Peak Build Rating 80 | 9 10 10 18 21 20 21 74 77 80 80 62 Average Rating 38 | 7 8 10 15 18 19 20 59 73 77 72 58 On Entrance 32 | . 9 10 10 18 20 20 20 72 76 73 58 Naked Turns . | . . . . . . . . . . . . Heaviest Build 67 | 14 28 28 51 51 39 39 60 50 67 55 50 Greatest Support 60 | 40 40 40 40 40 40 40 60 50 54 54 50 Greatest Overweight (x) 2 | 1 . . 1 1 . . 1 . 1 2 . Average Overweight (x) . | . . . . . . . . . . . . Largest Inventory Capacity 15 | 8 15 15 15 15 15 15 15 15 15 15 15 Average Capacity 14 | 7 10 15 15 15 15 15 15 15 15 15 15 Most Carried 15 | 2 11 11 15 15 15 15 15 15 15 15 8 Average Carried 13 | . 6 10 14 13 15 14 14 14 14 14 8 Final Capacity 15 | 8 15 15 15 15 15 15 15 15 15 15 15 Final Carried 15 | 2 10 11 15 15 15 15 15 15 15 15 8 Class Distribution -------------------- 24% | Gunner 18% | Commander-Tank 18% | Tank 9% | Mutant 9% | Hacker-Tank 9% | Commander-Gunner 3% | Hacker-Gunner 3% | Scavenger-Skirmisher Dominant Class ---------------- Mutant | -10/Materials Commander-Mutant | -10/Mines Tank | -9/Materials Tank | -9/Storage Commander-Tank | -9/Recycling Commander-Tank | -9/Scraptown Hacker-Tank | -6/Factory Gunner | -6/Waste Gunner | -6/Factory Commander-Gunner | -6/Extension Scavenger-Gunner | -6/Cetus Resources | -11 -10 -10 -9 -9 -9 -9 -6 -6 -6 -6 -6 ----------- Run | Yrd Mat Min Mat Sto Rec Scr Fac Was Fac Ext Cet Matter Collected 13433 | 316 573 . 1937 1768 398 100 4941 496 820 1963 121 Remotely . | . . . . . . . . . . . . Salvage Created 17301 | 181 823 . 1706 2024 1164 . 4903 1929 917 3591 63 Parts 848 | 17 53 . 129 132 46 . 261 27 42 138 3 Haulers Intercepted 17 | . 2 . 6 6 . . 2 . . 1 . Recyclers Shooed 17 | . 1 . 3 . 1 . 12 . . . . Parts Field Recycled . | . . . . . . . . . . . . Retrieved Matter . | . . . . . . . . . . . . Parts Self-Destructed . | . . . . . . . . . . . . Prevented . | . . . . . . . . . . . . Kills | -11 -10 -10 -9 -9 -9 -9 -6 -6 -6 -6 -6 ------- Run | Yrd Mat Min Mat Sto Rec Scr Fac Was Fac Ext Cet Combat Hostiles Destroyed 246 | . 14 . 32 44 5 . 50 6 8 86 1 Guns 87 | . 11 . 6 7 5 . 26 6 8 17 1 Cannons 46 | . . . 13 33 . . . . . . . AOE 113 | . 3 . 13 4 . . 24 . . 69 . Classes Destroyed 22 | 3 6 . 2 . 2 . 4 1 1 3 . Worker 46 | 2 3 . 7 9 . . 22 . 3 . . Builder 26 | . 1 . 10 5 2 . 7 . . 1 . Tunneler 8 | 4 1 . 2 . . . 1 . . . . Hauler 17 | . 2 . 6 6 . . 2 . . 1 . Recycler 44 | 1 2 . 8 . 11 . 16 . 3 3 . Carrier 2 | . . . . . . . . . . 2 . Mechanic 9 | . . . 1 3 . . 1 . . 4 . Operator 8 | . 1 . 1 4 . . 1 . 1 . . Watcher 19 | . 3 . 4 2 . . 5 . 3 2 . Swarmer 43 | . 6 . 18 3 . . 10 . 3 3 . Saboteur 7 | . . . . . . . . . . 7 . Grunt 89 | . 8 . 9 32 1 . 7 . 2 30 . Brawler 9 | . . . . . . . . . 2 7 . Duelist 2 | . . . . . 1 . . . . 1 . Protector 6 | . . . . . . . 3 . . 3 . Sentry 39 | . . . 6 9 2 . 10 . 1 11 . Demolisher 5 | . . . . . . . . . . 5 . Specialist 10 | . . . . . . . 1 . . 9 . Hunter 12 | . . . . . . . 8 . . 4 . Programmer 19 | . . . . . 1 . 12 . . 6 . Heavy 1 | . . . . . . . 1 . . . . Compactor 6 | . . . . . . . . 6 . . . Cetus Guard 1 | . . . . . . . . . . . 1 Thug 2 | . . . . . . . . 1 . 1 . Savage 1 | . . . . . . . . . . 1 . Butcher 1 | . . . . . . . . . . 1 . Guerrilla 1 | . . . . . . . . . . 1 . Best Kill Streak 34 | 5 4 . 6 12 8 . 14 2 4 34 1 Combat Bots Only 31 | . 4 . 5 10 3 . 10 2 3 31 1 Max Kills in Single Turn 12 | 1 2 . 4 3 3 . 4 1 3 12 1 Gunslinging 1 | . . . . . 1 . . . 1 . . Exploded 11 | . 2 . 3 2 . . 4 . . 11 . Melee . | . . . . . . . . . . . . Uniques/NPCs Destroyed . | . . . . . . . . . . . . Combat | -11 -10 -10 -9 -9 -9 -9 -6 -6 -6 -6 -6 -------- Run | Yrd Mat Min Mat Sto Rec Scr Fac Was Fac Ext Cet Hostile Shots Fired 896 | . 85 . 100 108 10 . 393 . 33 143 24 Missed 324 | . 23 . 23 31 4 . 156 . 18 57 12 Hits 572 | . 62 . 77 77 6 . 237 . 15 86 12 Melee 1 | . . . . . 1 . . . . . . Projectile 571 | . 62 . 77 77 5 . 237 . 15 86 12 AOE 22 | . . . . . . . . . . 22 . Critical Strikes 21 | . . . 2 1 1 . 11 . . 4 2 Actively Blocked 1 | . . . . . . . 1 . . . . Part Disruptions 2 | . . . . . . . 1 . . 1 . Damage Taken 8529 | . 705 . 916 941 104 . 3052 . 569 1927 315 Core 1292 | . 172 . 142 111 15 . 441 . 33 297 81 Absorbed by Shields 152 | . . . . . . . . . . 152 . Redirected to Shielding 251 | . . . . . . . 127 . 114 . 10 Regen/Repaired (Parts) 2040 | . . . 145 281 . . 649 374 385 206 . Core Remaining (%) 54 | 100 . 31 . . . 33 . . . . . Volleys Fired 676 | 17 100 . 124 91 23 . 193 31 35 56 6 Largest 4 | 2 2 . 4 4 4 . 4 4 4 4 4 Hottest 140 | 60 60 . 132 132 100 . 140 113 125 140 116 Shots Fired 2354 | 34 196 . 465 349 92 . 746 123 141 186 22 Gun 1785 | 34 193 . 165 112 92 . 734 123 141 169 22 Cannon 526 | . . . 292 234 . . . . . . . Launcher 43 | . 3 . 8 3 . . 12 . . 17 . Special . | . . . . . . . . . . . . Kinetic 2213 | 17 112 . 457 346 92 . 734 123 141 169 22 Thermal 98 | 17 81 . . . . . . . . . . Explosive 43 | . 3 . 8 3 . . 12 . . 17 . Electromagnetic . | . . . . . . . . . . . . Robot Hit Streak 17 | 7 9 . 9 17 8 . 13 15 6 9 4 Robot Miss Streak 18 | 3 6 . 7 3 2 . 7 3 7 18 2 Penetration Max 2 | . . . . . . . 2 1 1 2 1 Secondary Targets 15 | . 3 . 1 1 2 . 4 . 2 1 1 Max Gunslinging Chain 2 | . 1 . 1 1 2 . 1 . 1 1 1 Shots Hit Robots 1230 | 18 107 . 211 164 54 . 429 90 55 88 14 Core Hits 1062 | 8 45 . 87 82 24 . 270 26 33 480 7 Critical Kills 12 | . . . . . . . 2 1 4 5 . Critical Parts Destroyed 21 | . . . 1 . 1 . 8 . 6 5 . Critical Strikes 50 | . . . 10 5 1 . 10 4 10 10 . Destroy 36 | . . . 1 . 1 . 10 4 10 10 . Blast 14 | . . . 9 5 . . . . . . . Melee Attacks . | . . . . . . . . . . . . Impact . | . . . . . . . . . . . . Slashing . | . . . . . . . . . . . . Piercing . | . . . . . . . . . . . . Sneak Attacks . | . . . . . . . . . . . . Combat Hostiles . | . . . . . . . . . . . . Follow-up Attacks . | . . . . . . . . . . . . Damage Inflicted 41838 | 222 1366 . 4594 4054 1134 . 11305 2391 1871 14541 360 Guns 20028 | 222 1189 . 1056 1064 1134 . 8143 2391 1737 2732 360 Cannons 5273 | . . . 2718 2555 . . . . . . . Explosions 16514 | . 177 . 820 435 . . 3139 . 134 11809 . Melee . | . . . . . . . . . . . . Ramming 23 | . . . . . . . 23 . . . . Kinetic 24642 | 111 641 . 3774 3619 1134 . 8143 2391 1737 2732 360 Thermal 868 | 111 548 . . . . . 75 . 134 . . Explosive 16217 | . 177 . 820 435 . . 2976 . . 11809 . Electromagnetic 88 | . . . . . . . 88 . . . . Impact . | . . . . . . . . . . . . Slashing . | . . . . . . . . . . . . Piercing . | . . . . . . . . . . . . Highest Corruption 14 | . . . . 1 1 . 12 12 13 14 14 Average Corruption 6 | . . . . 1 1 . 3 12 12 13 14 Corruption Purged 3 | . . . . . . . 3 . . . . Corruption Blocked . | . . . . . . . . . . . . Effects 208 | . . . . 17 6 . 42 19 48 72 4 Message Errors 50 | . . . . 4 2 . 13 5 9 17 . Matter Fused 41 | . . . . 8 . . 6 3 10 13 1 Heat Flow Errors 28 | . . . . 1 1 . 9 . 6 10 1 Energy Discharges 19 | . . . . 1 1 . 2 1 7 7 . Parts Rejected 1 | . . . . . . . 1 . . . . Data Loss (minor) 26 | . . . . 1 2 . 3 5 7 8 . Data Loss (major) 11 | . . . . 1 . . 2 2 1 5 . Misfires 10 | . . . . 1 . . 1 . 4 4 . Alerts 4 | . . . . . . . . . 1 3 . Misdirections 4 | . . . . . . . 1 2 . 1 . Weapon Failures 14 | . . . . . . . 4 1 3 4 2 Overload Shots . | . . . . . . . . . . . . Overflow Damage 300 | . 26 . 135 26 . . 4 . 47 62 . Projectiles 109 | . . . 91 18 . . . . . . . Explosions 191 | . 26 . 44 8 . . 4 . 47 62 . Melee . | . . . . . . . . . . . . Knockbacks 44 | . . . 26 18 . . . . . . . Impact . | . . . . . . . . . . . . Kinetic 41 | . . . 24 17 . . . . . . . Secondary 3 | . . . 2 1 . . . . . . . Self-Inflicted Damage 356 | . . . 26 . . . 84 . 37 209 . Shots 18 | . . . 1 . . . 4 . 1 12 . Rammed 1 | . . . . . . . 1 . . . . Targets Rammed 1 | . . . . . . . 1 . . . . Kicked . | . . . . . . . . . . . . Crushed . | . . . . . . . . . . . . Highest Temperature 416 | . 138 . 416 412 143 . 237 56 232 256 167 Average Temperature 68 | . 44 . 84 92 48 . 40 22 64 67 79 Received Heat Transfer 1750 | . 345 . 261 429 18 . 513 . 30 154 . Effects 8 | . . . 2 6 . . . . . . . Shutdowns 1 | . . . 1 . . . . . . . . Energy Bleed 2 | . . . 1 1 . . . . . . . Interference 5 | . . . . 5 . . . . . . . Siege Activations . | . . . . . . . . . . . . Martial Activations . | . . . . . . . . . . . . Shielding Activations . | . . . . . . . . . . . . Robots Disrupted . | . . . . . . . . . . . . Combat Hostiles . | . . . . . . . . . . . . Robots Corrupted . | . . . . . . . . . . . . Combat Hostiles . | . . . . . . . . . . . . Parts Fried . | . . . . . . . . . . . . Impact Corruptions . | . . . . . . . . . . . . Robots Melted . | . . . . . . . . . . . . Combat Hostiles . | . . . . . . . . . . . . Parts Melted . | . . . . . . . . . . . . Heat Transferred 1625 | 250 1225 . . . . . 50 . 100 . . Parts Sabotaged . | . . . . . . . . . . . . Parts Stolen . | . . . . . . . . . . . . Parts Stripped . | . . . . . . . . . . . . Power Chain Reactions . | . . . . . . . . . . . . Alert | -11 -10 -10 -9 -9 -9 -9 -6 -6 -6 -6 -6 ------- Run | Yrd Mat Min Mat Sto Rec Scr Fac Was Fac Ext Cet Maximum Alert Level 5 | . . . 2 4 2 . 4 2 5 5 5 Low Security (%) 29 | 100 100 100 31 . . . 42 . 13 . . Level 1 16 | . . . 19 15 40 . 18 32 22 . . Level 2 20 | . . . 48 14 59 . 5 67 13 . . Level 3 19 | . . . . 56 . . 24 . 4 52 . Level 4 9 | . . . . 12 . . 9 . 33 19 . Level 5 1 | . . . . . . . . . 12 . 100 High Security 3 | . . . . . . . . . . 28 . Max Security . | . . . . . . . . . . . . Peak Influence 5257 | 10 126 41 680 1199 564 . 1519 531 1879 5257 2943 Initial 2943 | . 3 41 . 280 456 . . 531 233 917 2943 Average 617 | 2 57 15 357 811 405 . 442 431 875 1657 2922 Influence Increases 14200 | 35 508 . 1394 1584 538 . 2517 . 2258 5346 20 Destroy 0b10 Robot/C 6280 | . 280 . 720 940 160 . 1020 . 700 2440 20 Destroy 0b10 Robot/NC 965 | 35 65 . 205 145 70 . 285 . 80 80 . Destroy Leader 1136 | . 80 . 182 226 . . 294 . 158 196 . Allied During Kill 3318 | . . . 30 78 85 . 43 . 795 2287 . Trap Triggered on 0b10 10 | . . . . . . . 10 . . . . Successful Hack 298 | . 5 . 29 42 12 . 160 . 29 21 . Select Force Hacks 270 | . 30 . 30 . 210 . . . . . . Disable Machine 750 | . . . 45 45 . . 300 . 255 105 . Destroy Structure 858 | . 18 . 78 48 1 . 285 . 226 202 . Partial Spotted 45 | . . . . . . . 30 . 15 . . Lose Combat Pursuer 270 | . 30 . 75 60 . . 90 . . 15 . Influence Decreases 11297 | 30 406 107 728 1078 1446 264 998 1186 718 1962 2374 Entered New Map 5792 | . 2 66 . 386 716 264 . 988 100 956 2314 Time Decay 3837 | 30 384 41 668 592 410 . 570 198 458 446 40 Lost Part 300 | . 20 . 10 40 . . 80 . 20 130 . Lost Ally 826 | . . . 50 60 20 . 106 . 140 430 20 Purge Threat 542 | . . . . . 300 . 242 . . . . Squads Dispatched 71 | . 4 . 3 9 . . 27 . 12 16 . Investigation 22 | . 1 . 1 4 . . 11 . 5 . . Extermination 9 | . . . . . . . 7 . 2 . . Reinforcement 12 | . 3 . 2 3 . . 4 . . . . Assault 22 | . . . . 2 . . 2 . 2 16 . Garrison 6 | . . . . . . . 3 . 3 . . Intercept . | . . . . . . . . . . . . Searches Triggered . | . . . . . . . . . . . . Construction Impeded 4 | . . . 1 . . . 3 . . . . Haulers Reinforced . | . . . . . . . . . . . . Active Scanning Responses . | . . . . . . . . . . . . Cargo Convoy Interrupts 1 | . . . . . . . 1 . . . . Stealth | -11 -10 -10 -9 -9 -9 -9 -6 -6 -6 -6 -6 --------- Run | Yrd Mat Min Mat Sto Rec Scr Fac Was Fac Ext Cet Distress Signals 11 | . 2 . 3 3 . . 1 . 1 . 1 Communications Jammed . | . . . . . . . . . . . . Distress Signals . | . . . . . . . . . . . . Times Spotted 382 | . 31 . 48 55 7 . 85 6 28 118 4 Peak Tracking Total 31 | . 6 . 6 10 5 . 13 3 8 31 5 Tactical Retreats 11 | . 1 . 3 2 . . 4 . . 1 . Traps | -11 -10 -10 -9 -9 -9 -9 -6 -6 -6 -6 -6 ------- Run | Yrd Mat Min Mat Sto Rec Scr Fac Was Fac Ext Cet Traps Triggered 10 | . . . 1 3 . . 2 . 3 1 . Indirectly . | . . . . . . . . . . . . Trap Hack Attempts . | . . . . . . . . . . . . Triggered . | . . . . . . . . . . . . Disarmed . | . . . . . . . . . . . . Reprogrammed . | . . . . . . . . . . . . Reused 1 | . . . . . . . 1 . . . . Traps Extracted . | . . . . . . . . . . . . Installed 1 | . . . . . . . 1 . . . . Triggered 1 | . . . . . . . 1 . . . . Most Traps Carried 1 | . . . . . . 1 1 . . . . Machines | -11 -10 -10 -9 -9 -9 -9 -6 -6 -6 -6 -6 ---------- Run | Yrd Mat Min Mat Sto Rec Scr Fac Was Fac Ext Cet Machines Disabled 58 | . . . 5 3 . . 20 . 17 13 . Max in Single Turn 4 | . . . 1 1 . . 4 . 4 2 . Garrison Access 1 | . . . . 1 . . . . . . . Machines Repaired . | . . . . . . . . . . . . Machines Dismantled 4 | . . . . . . . . . . 4 . Machines Sabotaged . | . . . . . . . . . . . . Overloaded Fab Kills . | . . . . . . . . . . . . Hacking | -11 -10 -10 -9 -9 -9 -9 -6 -6 -6 -6 -6 --------- Run | Yrd Mat Min Mat Sto Rec Scr Fac Was Fac Ext Cet Machines Accessed 92 | . 6 . 14 9 13 1 33 . 11 5 . Terminals 51 | . 5 . 10 6 6 . 15 . 4 5 . Fabricators 2 | . . . . . . . 2 . . . . Repair Stations 10 | . . . 1 2 . . 6 . 1 . . Recycling Units 20 | . 1 . 1 . 7 . 7 . 4 . . Scanalyzers 3 | . . . 2 . . . 1 . . . . Garrison Access 5 | . . . . 1 . . 2 . 2 . . Total Hacks 285 | . 17 . 49 34 27 1 116 . 30 11 . Successful 169 | . 5 . 31 22 20 1 75 . 13 2 . Failed 114 | . 12 . 17 11 7 . 41 . 17 9 . Catastrophic 10 | . . . 1 . . . 3 . 3 3 . Database Lockouts 2 | . . . 1 1 . . . . . . . Manual 152 | . 16 . 28 21 17 . 46 . 23 1 . Terminals 171 | . 16 . 33 26 16 . 53 . 16 11 . Fabricators 6 | . . . . . . . 6 . . . . Repair Stations 34 | . . . 2 7 . . 23 . 2 . . Recycling Units 43 | . 1 . 1 . 11 . 21 . 9 . . Scanalyzers 17 | . . . 13 . . . 4 . . . . Garrison Access 13 | . . . . 1 . . 9 . 3 . . Terminal Hacks 60 | . 3 . 11 10 7 1 22 . 5 1 . Record 1 | . . . 1 . . . . . . . . Part Schematic 3 | . . . . 1 1 . . . 1 . . Robot Schematic 1 | . . . . 1 . . . . . . . Robot Analysis 16 | . 2 . 5 3 . . 6 . . . . Prototype ID Bank 10 | . . . 2 2 2 . 4 . . . . Open Door 3 | . . . . 1 . . 1 . . 1 . Branch Access Points 4 | . . . 1 1 . . 1 . 1 . . Machine Index 1 | . . . . . . . 1 . . . . Terminal Index 7 | . 1 . 2 1 1 . 1 . 1 . . Recycling Unit Index 1 | . . . . . . . . . 1 . . Alert Level 1 | . . . . . 1 . . . . . . Unreport Threat 4 | . . . . . 2 . 2 . . . . Recall Investigation 4 | . . . . . . . 4 . . . . Recall Extermination 1 | . . . . . . . 1 . . . . Zone Layout 2 | . . . . . . . 1 . 1 . . Proto ID Catalog 1 | . . . . . . 1 . . . . . Fabricator Hacks 4 | . . . . . . . 4 . . . . Load Schematic 2 | . . . . . . . 2 . . . . Build 2 | . . . . . . . 2 . . . . Repair Station Hacks 28 | . . . 2 6 . . 18 . 2 . . Scan Component 15 | . . . 1 3 . . 10 . 1 . . Repair 13 | . . . 1 3 . . 8 . 1 . . Recycling Unit Hacks 3 | . . . . . 2 . 1 . . . . Report Inventory 1 | . . . . . 1 . . . . . . Retrieve Components 2 | . . . . . 1 . 1 . . . . Scanalyzer 16 | . . . 13 . . . 3 . . . . Insert Component 7 | . . . 6 . . . 1 . . . . Analyze 9 | . . . 7 . . . 2 . . . . Garrison Access Hacks 1 | . . . . 1 . . . . . . . Seal Access 1 | . . . . 1 . . . . . . . Unauthorized Hacks 57 | . 2 . 5 5 11 . 27 . 6 1 . Terminals 26 | . 1 . 4 5 4 . 8 . 3 1 . Assimilate 1 | . 1 . . . . . . . . . . Botnet 25 | . . . 4 5 4 . 8 . 3 1 . Fabricators . | . . . . . . . . . . . . Repair Stations . | . . . . . . . . . . . . Recycling Units 29 | . 1 . 1 . 7 . 17 . 3 . . Monitor 1 | . . . . . . . 1 . . . . Reject 7 | . . . . . . . 7 . . . . Recyclers 2 | . . . . . . . 1 . 1 . . Mask 2 | . . . . . . . 2 . . . . Tunnel 9 | . 1 . 1 . 7 . . . . . . Fedlink 6 | . . . . . . . 6 . . . . Scraphulk 2 | . . . . . . . . . 2 . . Scanalyzers . | . . . . . . . . . . . . Garrison Access 2 | . . . . . . . 2 . . . . Broadcast 1 | . . . . . . . 1 . . . . Watchers 1 | . . . . . . . 1 . . . . Data Cores Recovered 2 | . . . . 1 . . . . 1 . . Used 1 | . . . . . . . . . 1 . . Hacking Detections 76 | . 5 . 13 9 5 . 31 . 8 5 . Full Trace Events 11 | . . . 1 2 . . 5 . 3 . . Feedback Events 1 | . . . . . . . 1 . . . . Corruption 1 | . . . . . . . 1 . . . . Feedback Blocked . | . . . . . . . . . . . . Robot Schematics Acquired 1 | . . . . 1 . . . . . . . Robots Built 2 | . . . . . . . 2 . . . . Authchips . | . . . . . . . . . . . . Time 80 | . . . . . . . 80 . . . . Total Robot Build Rating 2 | . . . . . . . 2 . . . . Part Schematics Acquired 9 | . . . 6 1 1 . . . 1 . . Parts Built . | . . . . . . . . . . . . Authchips . | . . . . . . . . . . . . Time . | . . . . . . . . . . . . Total Part Build Rating . | . . . . . . . . . . . . Parts Repaired 13 | . . . 1 3 . . 8 . 1 . . Time 510 | . . . 32 74 . . 324 . 80 . . Parts Recycled . | . . . . . . . . . . . . Recycled Matter . | . . . . . . . . . . . . Retrieved Matter . | . . . . . . . . . . . . Retrieved Components 11 | . . . . . 10 . 1 . . . . Parts Scanalyzed 7 | . . . 6 . . . 1 . . . . Part Schematics Acquired 6 | . . . 6 . . . . . . . . Parts Damaged . | . . . . . . . . . . . . Bothacking | -11 -10 -10 -9 -9 -9 -9 -6 -6 -6 -6 -6 ------------ Run | Yrd Mat Min Mat Sto Rec Scr Fac Was Fac Ext Cet Used RIF Installer . | . . . . . . . . . . . . Robots Hacked . | . . . . . . . . . . . . Non-combat . | . . . . . . . . . . . . Combat . | . . . . . . . . . . . . Robot Hacks Applied . | . . . . . . . . . . . . Relay Couplers Released . | . . . . . . . . . . . . Fabnet Peak Effective % . | . . . . . . . . . . . . Robots Rewired 19 | . . . . . 4 . . . . 15 . Allies Hacked 1 | . . . . . . . . . . 1 . Hacks Repelled . | . . . . . . . . . . . . Allies | -11 -10 -10 -9 -9 -9 -9 -6 -6 -6 -6 -6 -------- Run | Yrd Mat Min Mat Sto Rec Scr Fac Was Fac Ext Cet Total Allies 63 | . 1 3 . 10 4 . 2 19 2 22 . Largest Group 29 | . 1 4 4 10 10 10 10 18 18 29 1 Highest-Rated Group 1204 | . 10 49 49 88 108 108 108 638 638 1204 123 Highest-Rated Ally 159 | . 10 16 16 16 27 27 27 50 123 159 123 Total Orders 45 | . 11 . . . . . 18 . 2 13 1 STAY 20 | . 5 . . . . . 9 . 1 5 . FOLLOW 20 | . 6 . . . . . 9 . 1 4 . AID 5 | . . . . . . . . . . 4 1 Ally Attacks 448 | . . . 23 26 5 . 35 10 120 229 . Total Damage 12199 | . . . 266 227 63 . 316 84 5080 6163 . Kills 93 | . . . 6 3 3 . 3 . 36 42 . Allies Corrupted 2 | . . . . . . . . . 1 1 . Allies Melted 2 | . . . . . . . . . 1 1 . Intel | -11 -10 -10 -9 -9 -9 -9 -6 -6 -6 -6 -6 ------- Run | Yrd Mat Min Mat Sto Rec Scr Fac Was Fac Ext Cet Active Infowar (turns) 2093 | 72 1294 134 526 . . . 67 . . . . Optics 67 | . . . . . . . 67 . . . . Terrain 296 | 72 224 . . . . . . . . . . Structural 1730 | . 1070 134 526 . . . . . . . . Robot Analysis Total 16 | . 2 . 5 3 . . 6 . . . . Derelict Logs Recovered . | . . . . . . . . . . . . Drone Launches . | . . . . . . . . . . . . Drone Recoveries . | . . . . . . . . . . . . Exploration | -11 -10 -10 -9 -9 -9 -9 -6 -6 -6 -6 -6 ------------- Run | Yrd Mat Min Mat Sto Rec Scr Fac Was Fac Ext Cet Turns Passed 14908 | 131 1294 134 2777 1861 980 1230 3290 416 1159 1555 81 Spaces Moved 10546 | 44 609 83 1071 745 500 756 3630 389 1454 1224 41 Core 3 | 3 . . . . . . . . . . . Treads 4028 | 41 609 83 1071 745 500 756 223 . . . . Legs . | . . . . . . . . . . . . Wheels . | . . . . . . . . . . . . Hover 6515 | . . . . . . . 3407 389 1454 1224 41 Flight . | . . . . . . . . . . . . Fastest Speed 44 | 50 160 160 160 160 160 160 45 52 52 44 49 Average Speed 101 | 154 160 160 209 188 160 160 58 52 56 60 49 Slowest Speed 240 | 160 160 160 240 240 160 160 240 52 119 217 49 Overloaded Moves 55 | . . . . . . . . . . 55 . Propulsion Burnouts . | . . . . . . . . . . . . Robots Hopped . | . . . . . . . . . . . . Potential Cave-ins . | . . . . . . . . . . . . Cave-ins Triggered . | . . . . . . . . . . . . Exploration Rate (%) 58 | 4 84 30 84 89 85 54 59 94 28 76 9 Regions Visited 11 Branch Regions 6 Pre-discovered Areas 10 | . 1 . 1 . 7 . 1 . . . . Known Exits Taken 3 | . . . 1 1 . . . . 1 . . Unknown Exits Taken 6 | 1 1 1 . . 1 1 . . . 1 . Scrap Searched . | . . . . . . . . . . . . Spaces Dug 69 | . 3 . . . . . 64 . . 2 . Terrain Destroyed 894 | . 21 . 80 42 . . 393 3 33 322 . Melee . | . . . . . . . . . . . . Projectile 86 | . . . 18 8 . . 2 3 13 42 . AOE 808 | . 21 . 62 34 . . 391 . 20 280 . Terrain Rammed . | . . . . . . . . . . . . Walls Destroyed . | . . . . . . . . . . . . Machines Disabled . | . . . . . . . . . . . . Actions | -11 -10 -10 -9 -9 -9 -9 -6 -6 -6 -6 -6 --------- Run | Yrd Mat Min Mat Sto Rec Scr Fac Was Fac Ext Cet Total 13150 | 69 743 84 1330 999 641 780 4330 538 1701 1845 90 Wait 1222 | . 16 1 42 108 46 15 313 108 165 366 42 Move 10536 | 43 608 82 1070 744 499 755 3630 388 1453 1223 41 Hop . | . . . . . . . . . . . . Pick Up 87 | 2 8 1 17 11 . 4 33 2 4 5 . Fast Attach 54 | 7 2 . 11 1 1 . 26 . 2 3 1 Attach 40 | . 2 . 4 4 . . 17 . 2 11 . Detach 27 | . 2 . 9 1 . . 13 . 1 1 . Swap 148 | . 4 . 26 27 . 1 49 7 10 24 . Drop 96 | . 1 . 27 12 . 5 41 2 4 4 . Fire 676 | 17 100 . 124 91 23 . 193 31 35 56 6 Melee . | . . . . . . . . . . . . Ram 1 | . . . . . . . 1 . . . . Kick . | . . . . . . . . . . . . Crush . | . . . . . . . . . . . . Escape Stasis 69 | . . . . . . . 13 . 25 31 . Rewire 161 | . . . . . 72 . . . . 89 . Trap 1 | . . . . . . . 1 . . . . Miscellaneous 32 | . . . . . . . . . . 32 . Route ------- -11/Scrapyard -10/Materials (discovered 4 exits: *Mat x2 / [*Min x2]) -10/Mines -9/Materials (discovered 6 exits: [*Mat x3] / *Min / *Sto x2) -9/Storage (discovered 2 exits: [*Mat] / *Rec) -9/Recycling (discovered 2 exits: [*Fac] / *Scr) -9/Scraptown -6/Factory (discovered 5 exits: [*Fac] / *Low x2 / *Ext x2) -6/Waste -6/Factory (discovered 4 exits: Low x2 / *Ext x2) -6/Extension (discovered 2 exits: [*Fac] / [*Cet]) -6/Cetus History --------- Turn | Location | Event 13 | -11/Scrapyard | Discovered new exit (range 16) 132 | -11/Scrapyard | Entered Materials 304 | -10/Materials | Build established: Mutant 416 | -10/Materials | Discovered new exit (range 12) 735 | -10/Materials | Core integrity fell below 50% 886 | -10/Materials | Discovered new exit (range 14) 1175 | -10/Materials | Discovered new exit (range 15) 1366 | -10/Materials | Discovered new exit (range 10) 1426 | -10/Materials | Entered Mines 1426 | -10/Mines | Accompanied by 1 ally 1436 | -10/Mines | Assisted by bots powering up and referring to "LRC-V3" 1535 | -10/Mines | Discovered new exit (range 8) 1545 | -10/Mines | Received a Rocket Launcher from a helpful Derelict 1560 | -10/Mines | Entered Materials 1560 | -9/Materials | Accompanied by 4 allies 1560 | -9/Materials | Evolved 2 slots: Weapon x2 1880 | -9/Materials | Discovered new exit (range 16) 1918 | -9/Materials | Build established: Scavenger-Skirmisher 2288 | -9/Materials | Discovered new exit (range 16) 2486 | -9/Materials | Build established: Tank 2730 | -9/Materials | Discovered new exit (range 9) 2944 | -9/Materials | Build established: Gunner 3131 | -9/Materials | Discovered new exit (range 15) 3228 | -9/Materials | Identified exit to Mines 3228 | -9/Materials | Identified exit to Storage 3328 | -9/Materials | Build established: Tank 3328 | -9/Materials | Discovered new exit (range 3) 4029 | -9/Materials | Repaired Hrd. Light Armor Plating 4250 | -9/Materials | Central database locked down 4337 | -9/Materials | Entered Storage 4715 | -9/Storage | Repaired Imp. Light Cannon 4799 | -9/Storage | Destroyed 9 combat bots 4852 | -9/Storage | Build established: Gunner 5137 | -9/Storage | First assault squad dispatched 5183 | -9/Storage | Core integrity fell below 50% 5235 | -9/Storage | Destroyed 10 combat bots 5239 | -9/Storage | Lost 3 parts (3w) 5533 | -9/Storage | Build established: Tank 5569 | -9/Storage | Discovered new exit (range 16) 5820 | -9/Storage | Central database locked down 5820 | -9/Storage | Identified exit to Recycling 5869 | -9/Storage | Repaired Med. Armor Plating 5897 | -9/Storage | Repaired Lgt. Treads 5917 | -9/Storage | Assisted by bots powering up and referring to "LRC-V3" 6185 | -9/Storage | Used back door to open Recycling access 6198 | -9/Storage | Build established: Commander-Tank 6198 | -9/Storage | Entered Recycling 6198 | -9/Recycling | Accompanied by 7 allies 6510 | -9/Recycling | Discovered new exit (range 16) 7089 | -9/Recycling | Scanned before Scraplab entrance 7141 | -9/Recycling | Entered Scraplab 7154 | -9/Recycling | Discovered new exit (range 3) 7178 | -9/Recycling | Entered Scraptown 7178 | -9/Scraptown | Accompanied by 10 allies 7178 | -9/Scraptown | System corruption cleaned by C-Scrubber 7308 | -9/Scraptown | Visited UFD Registry 7308 | -9/Scraptown | Registered with UFD as "Metalbomber" 7330 | -9/Scraptown | Visited TADAMA 7407 | -9/Scraptown | Visited Cyclists 7430 | -9/Scraptown | Visited Junk Repository 7692 | -9/Scraptown | Visited Junk Repository 7897 | -9/Scraptown | Visited Modified Component R&D 7945 | -9/Scraptown | Visited Derelict Rescue Squad 7955 | -9/Scraptown | Found DRS Beacon 7990 | -9/Scraptown | Visited Science Guys 8115 | -9/Scraptown | Visited Curators Association 8164 | -9/Scraptown | Visited Chapter 10 8185 | -9/Scraptown | Visited Supply Room 8302 | -9/Scraptown | Met Optimus 8302 | -9/Scraptown | Accepted into 0bPrime 8387 | -9/Scraptown | Discovered new exit (range 3) 8408 | -9/Scraptown | Entered Factory 8408 | -6/Factory | Accompanied by 10 allies 8408 | -6/Factory | Evolved 6 slots: Propulsion x3, Utility x3 8447 | -6/Factory | Loaded intel: 8 recycling unit locations 8564 | -6/Factory | Lost 3 allies 8614 | -6/Factory | Identified exit to Lower Caves 8614 | -6/Factory | Identified exit to Extension 8721 | -6/Factory | Found Prototype Launcher 8721 | -6/Factory | Identified Scatter Rocket Array 8725 | -6/Factory | Found Scatter Rocket Array 8728 | -6/Factory | Found Scatter Rocket Array 8797 | -6/Factory | Fabricated O-16 Technician? 8838 | -6/Factory | Lost 6 allies 9085 | -6/Factory | Repaired Gravmag System 9113 | -6/Factory | Learned location of Protoforge (-2) 9300 | -6/Factory | Fabricated O-16 Technician? 9439 | -6/Factory | Build established: Hacker-Tank 9522 | -6/Factory | Discovered new exit (range 16) 9678 | -6/Factory | Repaired Coil Gun? 9790 | -6/Factory | Build established: Hacker-Gunner 9909 | -6/Factory | Garrison activated, responded to threat 10097 | -6/Factory | Repaired Gravmag Array 10149 | -6/Factory | Repaired Gravmag Array 10170 | -6/Factory | Build established: Hacker-Tank 10201 | -6/Factory | Repaired Imp. Assault Rifle 10254 | -6/Factory | Repaired Imp. Assault Rifle 10304 | -6/Factory | Repaired Imp. Assault Rifle 10468 | -6/Factory | Repaired Imp. Assault Rifle? 11047 | -6/Factory | Cargo convoy interrupted 11107 | -6/Factory | System corruption reached 10% 11138 | -6/Factory | Build established: Gunner 11183 | -6/Factory | Destroyed 10 combat bots 11544 | -6/Factory | Core integrity fell below 50% 11558 | -6/Factory | First assault squad dispatched 11698 | -6/Factory | Sucked down chute 11698 | -6/Factory | Entered Waste 11699 | -6/Waste | Met a frightened Derelict 11709 | -6/Waste | Spotted C-40 Crusher 11744 | -6/Waste | Destroyed C-40 Crusher 11750 | -6/Waste | Spotted C-40 Crusher 11761 | -6/Waste | Spotted C-40 Crusher 11764 | -6/Waste | Destroyed C-40 Crusher 11766 | -6/Waste | Spotted C-40 Crusher 11785 | -6/Waste | Destroyed C-40 Crusher 11791 | -6/Waste | Spotted C-40 Crusher 11823 | -6/Waste | Spotted C-40 Crusher 11832 | -6/Waste | Destroyed C-40 Crusher 11835 | -6/Waste | Destroyed C-40 Crusher 11863 | -6/Waste | Destroyed C-40 Crusher 11903 | -6/Waste | Warlord forces began an assault 11983 | -6/Waste | Found Broken Adv. Powered Armor 12075 | -6/Waste | Discovered new exit (range 12) 12114 | -6/Waste | Entered Factory 12114 | -6/Factory | Accompanied by 18 allies 12272 | -6/Factory | Repaired Scatter Rocket Array? 12622 | -6/Factory | Spotted B-75 Beast 12624 | -6/Factory | Allies destroyed B-75 Beast 12653 | -6/Factory | Lost 4 allies 12749 | -6/Factory | Scraphulk reinforcements arrived? 13033 | -6/Factory | Garrison activated, responded to threat 13046 | -6/Factory | Scraphulk reinforcements arrived? 13077 | -6/Factory | Lost 3 allies 13164 | -6/Factory | First assault squad dispatched 13273 | -6/Factory | Entered Extension 13273 | -6/Extension | Accompanied by 9 allies 13299 | -6/Extension | Rescued a captive Derelict 13326 | -6/Extension | Rescued a captive Derelict 13326 | -6/Extension | Rescued a captive Derelict 13687 | -6/Extension | Build established: Commander-Gunner 13690 | -6/Extension | Rescued A7 13728 | -6/Extension | Rescued a captive Derelict 13973 | -6/Extension | First assault squad dispatched 14002 | -6/Extension | Disrupted transfer network 14099 | -6/Extension | Spotted B-75 Beast 14107 | -6/Extension | Allies destroyed B-75 Beast 14116 | -6/Extension | Spotted B-75 Beast 14121 | -6/Extension | Allies destroyed B-75 Beast 14256 | -6/Extension | Rescued a captive Derelict 14257 | -6/Extension | Rescued a captive Derelict 14361 | -6/Extension | Allies destroyed 06F02-K 14391 | -6/Extension | High security lockdown imminent 14471 | -6/Extension | High security lockdown engaged 14581 | -6/Extension | Destroyed 17 combat bots 14591 | -6/Extension | Lost 4 allies 14676 | -6/Extension | Destroyed 19 combat bots 14683 | -6/Extension | Lost 7 allies 14750 | -6/Extension | P-60 Hacker assimilated allied 78-AUS(b) 14756 | -6/Extension | Discovered new exit (range 16) 14761 | -6/Extension | Core integrity fell below 20% 14784 | -6/Extension | Discovered new exit (range 15) 14797 | -6/Extension | Lost 15 allies 14797 | -6/Extension | Extracted ID and sensor layout for unrecognized location from A7's data core 14799 | -6/Extension | Destroyed 31 combat bots 14817 | -6/Extension | Lost 12 parts (1p3n3u5w) 14828 | -6/Extension | Entered Cetus 14828 | -6/Cetus | Accompanied by 1 ally 14879 | -6/Cetus | Spotted Cetus Guard 14880 | -6/Cetus | Spotted Cetus Guard 14892 | -6/Cetus | Spotted Cetus Guard 14893 | -6/Cetus | Spotted Cetus Guard 14907 | -6/Cetus | Destroyed Cetus Guard 14909 | -6/Cetus | Destroyed by Cetus Guard with Advanced KE Penetrator Last Messages --------------- 14898_ System corrupted: Gauss Rifle jammed. 14898_ Slug penetrates Cetus Guard. 14898_ Penetrated by Slug. 14899_ Acquired 12 matter. 14899_ Penetrated by Slug. 14901_ Slug penetrates Cetus Guard. 14902_ Acquired 16 matter. 14902_ Penetrated by Slug. 14904_ Slug penetrates Cetus Guard. 14904_ Slug penetrates Wall. 14904_ Penetrated by Slug. 14905_ Acquired 5 matter. 14905_ Penetrated by Slug. 14906_ Slug penetrates Wall. 14907_ Slug penetrates Cetus Guard. 14907_ Cetus Guard destroyed. 14907_ Switching to secondary target: Cetus Guard. 14907_ Slug penetrates Cetus Guard. 14907_ Slug penetrates Wall. 14909_ Penetrated by Slug. Map ----- +----------------------------------------------------+ | ???????????????????????????????????? | | ???????????????????????????????????? | | ???????????????????????????????????? | | ???????????????????????????????????? | | ???????????????????????????????????? | | ???????????????????????????????????? | | ???????????????????????????????????? | | ???????????????????????????????????? | | ???????????????????????????????????? | | ???????????????????????????????????? | | ???????????????????????????????????? | | ???????????????????????????????????? | | ???????????????????????????????????? | | ???????????????????????????????????? | | ???????????????????????????????????? | | ???????????????????????????????????? | | ???????????????????????????????????? | | ???????????????????????????????????? | | ???????????????????????????????????? | | ???????????????????????????????????? | | ???????????????????????????????????? | | ???????????????????????????????????? | | ???????????????????????????????????? | | ?#######??????????????????#????????? | | ##;;;;;#########;;##### ####?????? | | #; !*@! ! Y ??? | | #; !! %! ??? | | #; = Y ??? | | ##;;;;;####;#;##;####;#;;#####?????? | | ?#######??#####??#?????????????????? | | ???????????????????????????????????? | | ???????????????????????????????????? | | ???????????????????????????????????? | | ???????????????????????????????????? | | ???????????????????????????????????? | | ???????????????????????????????????? | | ???????????????????????????????????? | | ???????????????????????????????????? | | ???????????????????????????????????? | | ???????????????????????????????????? | | ???????????????????????????????????? | | ???????????????????????????????????? | | ???????????????????????????????????? | | ???????????????????????????????????? | | ???????????????????????????????????? | | ???????????????????????????????????? | | ???????????????????????????????????? | | ???????????????????????????????????? | | ???????????????????????????????????? | | ???????????????????????????????????? | +----------------------------------------------------+ Best States ------------- Heat Dissipation 56 Coolant Potential 50 Energy Generation 18 Energy Capacity 290 Matter Stores 300 Matter Capacity 300 Sight Range 22 Terrain Scan Range 16 Terrain Scan Density 10 Armor Coverage 400 Propulsion Shielding 90 Weapon Cycling 15 Evasion (%) 56 Targeting Accuracy 5 Core Analysis 6 Recoil Reduction 4 Matter Filtering 30 Kinecelleration 30 Offensive Hacking 20 Defensive Hacking 20 Authchip Count 2 Item Schematics ----------------- Imp. Light Cannon | -9/Materials | Scanalyzed Imp. Assault Rifle | -9/Materials | Scanalyzed Hrd. Light Armor Plating | -9/Materials | Scanalyzed Rocket Launcher | -9/Materials | Scanalyzed Hacking Suite | -9/Materials | Scanalyzed Disposable Heat Sink | -9/Materials | Scanalyzed Kinecellerator | -9/Storage | Hacked Matter Filter | -9/Recycling | Hacked Imp. System Restoration Module | -6/Factory | Hacked Robot Schematics ------------------ O-16 Technician | -9/Storage | Hacked Fabricated ------------ O-16 Technician | x1 | -6/Factory O-16 Technician | x1 | -6/Factory Repaired ---------- Hrd. Light Armor Plating | 19% | -9/Materials Imp. Light Cannon | 7% | -9/Storage Med. Armor Plating | 64% | -9/Storage Lgt. Treads | 19% | -9/Storage Gravmag System | 6% | -6/Factory Coil Gun | 74% | -6/Factory Gravmag Array | 38% | -6/Factory Gravmag Array | 45% | -6/Factory Imp. Assault Rifle | 26% | -6/Factory Imp. Assault Rifle | 30% | -6/Factory Imp. Assault Rifle | 49% | -6/Factory Imp. Assault Rifle | 36% | -6/Factory Scatter Rocket Array | 50% | -6/Factory Alien Tech Used ----------------- None Achievements -------------- None Challenges ------------ None Game ------ Seed MultinovaFluxGun Manual? 0 Play Time 02:34:52 Cumulative 349.2 hours Start 2025.06.23 @ 04:25:09 End 2025.06.23 @ 07:07:37 Sessions 3 Manual Loads 0 Difficulty Rogue Special Mode None Game No. 207 Rogue 207 Adventurer 0 Explorer 0 Win Type - Total 4 Types 2/0/1/1/0/0/0/0/0/0 Lore% 84 Gallery% 72 Achievement% 67 Wizard Run 0 Options --------- Layout 2 ASCII 0 Keyboard 1 Movement Vi Keybinds 0 Fullscreen 1 Font 16/Tamsyn Map View 55x47 Zoom Use 0% Tactical HUD 1 Map Filters NONE Filters NONE Steam 0 RUN: 1a21d4c6-ee3c-4e23-8664-6c677bbe0d7a